fUSD/lending_fUSD_20240501
["ID","MTS","AMOUNT","RATE_DAILY","PERIOD"]
[325198698,1714575042269,-285.1,0.00014,2]
[325198699,1714575042279,-285.1,0.00014,2]
[325198700,1714575042288,-285.1,0.00014,2]
[325198701,1714575042297,-285.1,0.00014,2]
[325198702,1714575042307,-285.1,0.00014,2]
[325198703,1714575042316,-1069.3009771,0.0001401,2]
[325198704,1714575042326,-1216.94,0.0001402,2]
[325198705,1714575042335,-3000.0,0.0001405,2]
[325198706,1714575042346,-1500.0,0.00014104,2]
[325198707,1714575042356,-167.86,0.00014125,2]
[325198708,1714575042365,-1500.0,0.00014153,2]
[325198709,1714575042375,-1903.327934,0.00014247,2]
[325198710,1714575042385,-1147.68494913,0.00014249,2]
[325198711,1714575042394,-1216.94,0.00014294,2]
[325198712,1714575042404,-200.0,0.0001434,2]
[325198713,1714575042414,-1500.0,0.00014462,2]
[325198714,1714575042423,-1500.0,0.00014545,2]
[325198715,1714575042432,-350.73,0.00014548,2]
[325198716,1714575042441,-350.73,0.00014548,2]
[325198717,1714575042451,-1216.94,0.00014568,2]
[325198719,1714575042460,-300.0,0.00014569,2]
[325198721,1714575042469,-150.0,0.0001457,2]
[325198722,1714575042479,-1175.4483847,0.00014654,2]
[325198723,1714575042488,-735.92,0.00014703,2]
[325198724,1714575042497,-1500.0,0.00014714,2]
[325198725,1714575042507,-1500.0,0.00014721,2]
[325198726,1714575042517,-1500.0,0.00014801,2]
[325198727,1714575042526,-1216.94,0.00014842,2]
[325198728,1714575042536,-155.0,0.0001485,2]
[325198729,1714575042545,-299.28,0.00014861,2]
[325198730,1714575042555,-150.0,0.00014936,2]
[325198731,1714575042564,-500.0,0.0001497,2]
[325198732,1714575042573,-264.08,0.00014973,2]
[325198733,1714575042583,-259.76351067,0.00014978,2]
[325198734,1714575042706,-150.0,0.00014988,2]
[325198735,1714575042715,-267.3077234,0.0001499,2]
[325198736,1714575042725,-617.69571288,0.00015,2]
[325198737,1714575042734,-155.0,0.00015,2]
[325198738,1714575042744,-4212.20858202,0.00015,2]
[325198739,1714575042753,-155.0,0.00015,2]
[325198740,1714575042763,-257.03149954,0.00015,2]
[325198741,1714575042772,-13033.38861575,0.00015,10]
[325198742,1714575042781,-483.0,0.00015,2]
[325198743,1714575042790,-1401.4511097,0.00015,7]
[325198744,1714575042799,-200.0,0.00015,2]
[325198745,1714575042808,-2222.9,0.00015,2]
[325198746,1714575042818,-18322.0,0.00015,2]
[325198747,1714575042827,-75875.82700171,0.00015,2]
[325198748,1714575042836,-11092.0,0.00015,2]
[325198749,1714575042846,-1618.0,0.00015,2]
[325198750,1714575042855,-1007.78,0.00015,2]
[325198751,1714575042865,-188.62393998,0.00015,15]
[325198752,1714575042876,-300.0,0.00015068,2]
[325198753,1714575042889,-1903.327934,0.00015068,2]
[325198754,1714575042898,-911.6449125,0.000151,2]
[325198755,1714575042907,-500.0,0.0001511,2]
[325198756,1714575042917,-500.0,0.0001511,2]
[325198757,1714575042926,-500.0,0.0001511,2]
[325198758,1714575042935,-500.0,0.0001511,2]
[325198759,1714575042945,-500.0,0.0001511,2]
[325198760,1714575042954,-500.0,0.0001511,2]
[325198761,1714575042965,-500.0,0.0001511,2]
[325198762,1714575042976,-500.0,0.0001511,2]
[325198763,1714575042985,-500.0,0.0001511,2]
[325198764,1714575042995,-500.0,0.0001511,2]
[325198765,1714575043005,-500.0,0.0001511,2]
[325198766,1714575043014,-500.0,0.0001511,2]
[325198767,1714575043023,-500.0,0.0001511,2]
[325198768,1714575043033,-500.0,0.0001511,2]
[325198769,1714575043043,-500.0,0.0001511,2]
[325198770,1714575043052,-500.0,0.0001511,2]
[325198771,1714575043062,-500.0,0.0001511,2]
[325198772,1714575043072,-500.0,0.0001511,2]
[325198773,1714575043080,-500.0,0.0001511,2]
[325198774,1714575043090,-500.0,0.0001511,2]
[325198775,1714575043099,-500.0,0.0001511,2]
[325198776,1714575043108,-500.0,0.0001511,2]
[325198777,1714575043119,-500.0,0.0001511,2]
[325198778,1714575043128,-500.0,0.0001511,2]
[325198779,1714575043137,-500.0,0.0001511,2]
[325198780,1714575043147,-170.17,0.0001511,2]
[325198781,1714575043156,-500.0,0.0001511,2]
[325198782,1714575043166,-500.0,0.0001511,2]
[325198783,1714575043175,-500.0,0.0001511,2]
[325198784,1714575043184,-500.0,0.0001511,2]
[325198785,1714575043194,-500.0,0.0001511,2]
[325198786,1714575043204,-500.0,0.0001511,2]
[325198787,1714575043213,-627.03,0.0001511,2]
[325198788,1714575043223,-1216.94,0.00015116,2]
[325198789,1714575043232,-719.83,0.00015124,2]
[325198790,1714575043241,-1819.66,0.00015124,2]
[325198791,1714575043251,-1821.08,0.00015124,2]
[325198792,1714575043260,-150.17025526,0.00015138,2]
[325198793,1714575043270,-150.0,0.0001516,2]
[325198794,1714575043279,-17688.0,0.000152,3]
[325198795,1714575043288,-150.0,0.00015225,2]
[325198796,1714575043297,-1500.0,0.00015285,2]
[325198797,1714575043307,-558.7050582,0.0001529,2]
[325198798,1714575043316,-867.0716299,0.0001529,2]
[325198799,1714575043325,-150.0,0.00015291,2]
[325198800,1714575043335,-150.0,0.00015295,2]
[325198801,1714575043344,-17688.0,0.000153,5]
[325198802,1714575043353,-3000.0,0.0001531,2]
[325198803,1714575043363,-6909.21,0.0001531,2]
[325198804,1714575043375,-150.0,0.00015336,2]
[325198805,1714575043384,-1216.94,0.0001539,2]
[325198806,1714575043393,-300.0,0.00015397,2]
[325198807,1714575043403,-150.0,0.0001541,2]
[325198808,1714575043412,-150.0,0.00015416,2]
[325198809,1714575043422,-150.0,0.00015422,2]
[325198810,1714575043431,-150.0,0.00015425,2]
[325198811,1714575043442,-150.0,0.0001544,2]
[325198812,1714575043461,-150.0,0.00015448,2]
[325198813,1714575043480,-1500.0,0.00015452,2]
[325198814,1714575043499,-150.0,0.00015465,2]
[325198815,1714575043520,-150.0,0.00015473,2]
[325198816,1714575043540,-150.0,0.00015475,2]
[325198817,1714575043561,-150.0,0.0001548,2]
[325198818,1714575043575,-150.0,0.00015483,2]
[325198819,1714575043593,-155.0,0.000155,2]
[325198820,1714575043612,-150.0,0.000155,2]
[325198821,1714575043635,-150.0,0.00015507,2]
[325198822,1714575043648,-150.0,0.00015514,2]
[325198823,1714575043668,-150.0,0.00015515,2]
[325198824,1714575043684,-1500.0,0.00015522,2]
[325198825,1714575043700,-150.0,0.00015531,2]
[325198829,1714575043714,-150.0,0.00015533,2]
[325198833,1714575043729,-150.0,0.00015533,2]
[325198834,1714575043745,-150.0,0.00015534,2]
[325198835,1714575043760,-150.0,0.00015538,2]
[325198836,1714575043777,-162.88,0.00015562,2]
[325198838,1714575043793,-350.52,0.00015562,2]
[325198839,1714575043808,-150.0,0.0001557,2]
[325198840,1714575043823,-150.0,0.00015573,2]
[325198841,1714575043838,-150.0,0.00015589,2]
[325198842,1714575043853,-150.0,0.00015599,2]
[325198843,1714575043870,-150.0,0.00015605,2]
[325198844,1714575043889,-150.0,0.00015606,2]
[325198845,1714575043904,-150.0,0.00015608,2]
[325198846,1714575043919,-150.0,0.00015609,2]
[325198847,1714575043935,-150.0,0.00015612,2]
[325198848,1714575043951,-150.0,0.00015628,2]
[325198849,1714575043968,-150.0,0.00015635,2]
[325198850,1714575043983,-150.0,0.00015636,2]
[325198851,1714575043998,-150.0,0.00015643,2]
[325198852,1714575044013,-150.0,0.00015645,2]
[325198853,1714575044028,-150.0,0.00015651,2]
[325198854,1714575044043,-419.48,0.00015664,2]
[325198855,1714575044058,-350.73,0.00015664,2]
[325198856,1714575044074,-300.0,0.00015664,2]
[325198857,1714575044089,-300.0,0.00015664,2]
[325198858,1714575044104,-350.73,0.00015664,2]
[325198859,1714575044120,-350.73,0.00015664,2]
[325198860,1714575044135,-1216.94,0.00015664,2]
[325198861,1714575044149,-150.0,0.00015665,2]
[325198862,1714575044165,-150.0,0.00015668,2]
[325198863,1714575044180,-150.0,0.00015678,2]
[325198864,1714575044195,-150.0,0.0001568,2]
[325198865,1714575044210,-150.0,0.00015682,2]
[325198866,1714575044225,-150.0,0.00015701,2]
[325198867,1714575044241,-150.0,0.00015707,2]
[325198868,1714575044256,-150.0,0.00015712,2]
[325198869,1714575044270,-150.0,0.0001572,2]
[325198870,1714575044286,-150.0,0.00015736,2]
[325198871,1714575044301,-150.0,0.00015736,2]
[325198872,1714575044316,-150.0,0.00015749,2]
[325198873,1714575044332,-150.0,0.00015757,2]
[325198874,1714575044346,-150.0,0.00015775,2]
[325198875,1714575044362,-150.0,0.0001578,2]
[325198876,1714575044378,-150.0,0.00015789,2]
[325198877,1714575044392,-150.0,0.00015798,2]
[325198878,1714575044407,-150.0,0.00015806,2]
[325198879,1714575044422,-1500.0,0.00015813,2]
[325198880,1714575044438,-150.0,0.00015817,2]
[325198881,1714575044453,-150.0,0.00015818,2]
[325198882,1714575044468,-150.0,0.0001582,2]
[325198883,1714575044481,-150.0,0.0001582,2]
[325198884,1714575044496,-150.0,0.00015822,2]
[325198885,1714575044511,-150.0,0.00015825,2]
[325198886,1714575044527,-167.0,0.00015831,2]
[325198887,1714575044542,-167.0,0.00015831,2]
[325198888,1714575044557,-431.57,0.0001584,2]
[325198889,1714575044572,-150.0,0.00015842,2]
[325198890,1714575044587,-150.0,0.00015843,2]
[325198891,1714575044602,-150.0,0.00015856,2]
[325198892,1714575044618,-150.0,0.00015861,2]
[325198893,1714575044630,-150.0,0.00015867,2]
[325198894,1714575044639,-150.0,0.00015867,2]
[325198895,1714575044834,-150.0,0.00015873,2]
[325198896,1714575044850,-150.0,0.00015877,2]
[325198897,1714575044860,-150.0,0.0001588,2]
[325198898,1714575044871,-150.0,0.00015882,2]
[325198899,1714575044880,-163.36093103,0.00015884,2]
[325198900,1714575044893,-150.0,0.00015888,2]
[325198901,1714575044902,-1903.327934,0.0001589,2]
[325198902,1714575044912,-150.0,0.00015893,2]
[325198903,1714575044922,-150.0,0.00015908,2]
[325198904,1714575044931,-150.0,0.00015914,2]
[325198905,1714575044941,-150.0,0.00015925,2]
[325198906,1714575044950,-150.0,0.00015927,2]
[325198908,1714575044959,-150.0,0.00015931,2]
[325198909,1714575044970,-150.0,0.00015935,2]
[325198910,1714575044980,-150.0,0.00015937,2]
[325198911,1714575044989,-1216.94,0.00015938,2]
[325198912,1714575044999,-150.0,0.00015941,2]
[325198913,1714575045008,-150.0,0.00015948,2]
[325198914,1714575045017,-150.0,0.00015949,2]
[325198915,1714575045027,-150.0,0.00015957,2]
[325198916,1714575045036,-150.0,0.00015959,2]
[325198917,1714575045045,-150.0,0.00015963,2]
[325198918,1714575045055,-150.0,0.00015966,2]
[325198919,1714575045064,-150.0,0.00015967,2]
[325198920,1714575045074,-150.0,0.0001598,2]
[325198921,1714575045083,-150.0,0.00015982,2]
[325198922,1714575045093,-150.0,0.00015984,2]
[325198923,1714575045102,-173.08250668,0.00015985,2]
[325198924,1714575045113,-150.0,0.00015987,2]
[325198925,1714575045124,-150.0,0.00015995,2]
[325198926,1714575045134,-150.0,0.00015996,2]
[325198927,1714575045143,-150.0,0.00015998,2]
[325198928,1714575045153,-150.0,0.00015999,2]
[325198929,1714575045163,-970.0,0.00016,2]
[325198930,1714575045173,-2298.0,0.00016,2]
[325198931,1714575045182,-462.0,0.00016,2]
[325198932,1714575045192,-1395.0,0.00016,2]
[325198933,1714575045201,-1256.0,0.00016,2]
[325198934,1714575045210,-542.0,0.00016,2]
[325198935,1714575045219,-208.0,0.00016,2]
[325198936,1714575045228,-808.0,0.00016,2]
[325198937,1714575045238,-1859.0,0.00016,2]
[325198938,1714575045248,-610.0,0.00016,2]
[325198939,1714575045257,-437.0,0.00016,2]
[325198940,1714575045267,-3129.0,0.00016,2]
[325198941,1714575045277,-150.0,0.00016,2]
[325198942,1714575045286,-1474.0,0.00016,2]
[325198943,1714575045295,-2446.0,0.00016,2]
[325198944,1714575045305,-419.0,0.00016,2]
[325198945,1714575045314,-1139.0,0.00016,2]
[325198946,1714575045323,-5899.0,0.00016,2]
[325198947,1714575045333,-5733.0,0.00016,2]
[325198948,1714575045342,-37727.663,0.00016,2]
[325198949,1714575045351,-2292.0,0.00016,2]
[325198950,1714575045361,-1055.0,0.00016,2]
[325198951,1714575045371,-4006.40405101,0.00016,2]
[325198952,1714575045380,-2000.0,0.00016,2]
[325198953,1714575045389,-159.465733,0.00016,2]
[325198954,1714575045399,-150.0,0.00016,2]
[325198955,1714575045408,-150.0,0.00016003,2]
[325198956,1714575045417,-150.0,0.00016009,2]
[325198957,1714575045427,-150.0,0.00016011,2]
[325198958,1714575045437,-150.0,0.00016015,2]
[325198959,1714575045447,-150.0,0.00016019,2]
[325198960,1714575045456,-150.0,0.00016025,2]
[325198961,1714575045466,-150.0,0.00016026,2]
[325198962,1714575045475,-150.0,0.00016029,2]
[325198963,1714575045484,-150.0,0.00016038,2]
[325198964,1714575045494,-150.0,0.00016045,2]
[325198965,1714575045503,-150.0,0.00016052,2]
[325198966,1714575045512,-150.0,0.00016055,2]
[325198967,1714575045522,-150.0,0.00016056,2]
[325198968,1714575045531,-150.0,0.00016062,2]
[325198969,1714575045541,-150.0,0.00016064,2]
[325198970,1714575045551,-150.0,0.00016067,2]
[325198972,1714575045561,-500.0,0.0001607,2]
[325198974,1714575045570,-150.0,0.0001607,2]
[325198976,1714575045580,-150.0,0.00016073,2]
[325198978,1714575045590,-150.0,0.00016073,2]
[325198980,1714575045600,-150.0,0.00016078,2]
[325198981,1714575045610,-1500.0,0.00016078,2]
[325198982,1714575045621,-150.0,0.0001608,2]
[325198983,1714575045630,-150.0,0.00016084,2]
[325198984,1714575045640,-150.0,0.00016091,2]
[325198985,1714575045650,-150.0,0.00016101,2]
[325198986,1714575045659,-150.0,0.00016101,2]
[325198987,1714575045668,-150.0,0.00016103,2]
[325198988,1714575045678,-150.0,0.00016108,2]
[325198989,1714575045688,-150.0,0.00016109,2]
[325198990,1714575045698,-4963.31,0.0001611,15]
[325198991,1714575045707,-167.86,0.00016143,2]
[325198992,1714575045716,-735.92,0.00016173,2]
[325198993,1714575045725,-1216.94,0.00016212,2]
[325198994,1714575045735,-299.28,0.00016348,2]
[325198995,1714575045744,-200.0,0.00016438,2]
[325198996,1714575045754,-300.0,0.00016438,2]
[325198997,1714575045763,-864.17,0.00016438,2]
[325198998,1714575045773,-264.08,0.0001647,2]
[325198999,1714575045782,-1216.94,0.00016486,2]
[325199000,1714575045792,-522.46,0.00016494,2]
[325199001,1714575045801,-150.65,0.00016494,2]
[325199002,1714575045811,-701.35,0.00016494,2]
[325199003,1714575045820,-575.15,0.00016494,2]
[325199004,1714575045830,-1224.51742028,0.000165,2]
[325199005,1714575045839,-1000.0,0.000165,2]
[325199006,1714575045849,-165.30353314,0.000165,2]
[325199007,1714575045859,-150.0,0.000165,2]
[325199008,1714575045871,-150.0,0.000165,2]
[325199009,1714575045885,-3000.0,0.0001655,2]
[325199010,1714575045895,-1697.51,0.00016626,2]
[325199011,1714575045904,-1054.58902169,0.00016644,2]
[325199012,1714575045915,-1007.78,0.00016645,2]
[325199013,1714575045924,-156.26886033,0.00016687,2]
[325199014,1714575045934,-152.12902794,0.00016688,2]
[325199015,1714575045944,-501.17802338,0.00016706,2]
[325199016,1714575045954,-1903.327934,0.00016712,2]
[325199017,1714575045963,-160.86,0.00016712,2]
[325199018,1714575045974,-501.17802338,0.00016728,2]
[325199019,1714575045983,-150.10647152,0.00016744,2]
[325199020,1714575045993,-1054.58902169,0.00016748,2]
[325199021,1714575046003,-1054.58902169,0.00016755,2]
[325199022,1714575046012,-1216.94,0.0001676,2]
[325199023,1714575046021,-501.17802338,0.00016859,2]
[325199024,1714575046031,-155.0946959,0.00016863,2]
[325199025,1714575046040,-155.31314027,0.00016884,2]
[325199026,1714575046050,-178.28774648,0.000169,2]
[325199027,1714575046059,-37601.4386033,0.00017,2]
[325199028,1714575046068,-150.0,0.00017,2]
[325199029,1714575046078,-150.0,0.00017,2]
[325199030,1714575046087,-414.11,0.00017008,2]
[325199031,1714575046096,-151.77233387,0.00017008,2]
[325199032,1714575046106,-1216.94,0.00017034,2]
[325199033,1714575046115,-58000.0,0.00017119,2]
[325199034,1714575046129,-167.0,0.00017137,2]
[325199036,1714575046138,-167.0,0.00017137,2]
[325199038,1714575046148,-269.09505563,0.00017164,2]
[325199039,1714575046157,-352.42102634,0.00017172,2]
[325199040,1714575046167,-750.10289146,0.00017191,2]
[325199041,1714575046176,-150.10647152,0.00017198,2]
[325199042,1714575046185,-150.10647152,0.00017249,2]
[325199043,1714575046195,-150.10647152,0.00017256,2]
[325199044,1714575046206,-1216.94,0.00017308,2]
[325199045,1714575046216,-350.73,0.00017316,2]
[325199046,1714575046225,-485.23,0.00017316,2]
[325199047,1714575046234,-151.77233387,0.00017374,2]
[325199048,1714575046245,-5800.0,0.0001739,2]
[325199049,1714575046254,-5800.0,0.00017398,2]
[325199050,1714575046263,-5800.0,0.00017407,2]
[325199051,1714575046273,-5800.0,0.00017415,2]
[325199052,1714575046282,-5800.0,0.00017424,2]
[325199053,1714575046291,-5800.0,0.00017432,2]
[325199054,1714575046300,-1054.58902169,0.00017438,2]
[325199055,1714575046310,-5800.0,0.00017441,2]
[325199056,1714575046319,-5800.0,0.00017449,2]
[325199057,1714575046328,-269.09505563,0.00017455,2]
[325199058,1714575046337,-5800.0,0.00017458,2]
[325199059,1714575046346,-501.17802338,0.00017465,2]
[325199060,1714575046356,-5800.0,0.00017466,2]
[325199061,1714575046365,-5800.0,0.00017466,2]
[325199062,1714575046379,-5089.86909497,0.00017466,2]
[325199063,1714575046388,-151.0,0.00017466,2]
[325199064,1714575046397,-151.379445,0.00017466,2]
[325199065,1714575046406,-151.0,0.00017466,2]
[325199066,1714575046415,-151.0,0.00017466,2]
[325199067,1714575046424,-237.39057,0.00017466,2]
[325199068,1714575046434,-152.32962,0.00017466,2]
[325199069,1714575046443,-151.0,0.00017466,2]
[325199070,1714575046453,-237.39057,0.00017466,2]
[325199071,1714575046462,-151.0,0.00017466,2]
[325199072,1714575046473,-157.408408,0.00017466,2]
[325199073,1714575046482,-177.159009,0.00017466,2]
[325199074,1714575046492,-177.159009,0.00017466,2]
[325199075,1714575046501,-157.408408,0.00017466,2]
[325199076,1714575046510,-1458.305549,0.00017466,2]
[325199077,1714575046519,-1458.305549,0.00017466,2]
[325199078,1714575046529,-151.0,0.00017466,2]
[325199079,1714575046538,-151.0,0.00017466,2]
[325199080,1714575046547,-158.006979,0.00017466,2]
[325199081,1714575046556,-158.006979,0.00017466,2]
[325199082,1714575046565,-151.0,0.00017466,2]
[325199083,1714575046574,-151.0,0.00017466,2]
[325199084,1714575046584,-467.60503,0.00017466,2]
[325199085,1714575046594,-573.064479,0.00017466,2]
[325199086,1714575046603,-467.60503,0.00017466,2]
[325199087,1714575046612,-573.064479,0.00017466,2]
[325199088,1714575046624,-599.085775,0.00017466,2]
[325199089,1714575046633,-599.085775,0.00017466,2]
[325199090,1714575046642,-307.237788,0.00017466,2]
[325199091,1714575046651,-485.45,0.00017466,2]
[325199092,1714575046660,-307.237788,0.00017466,2]
[325199093,1714575046670,-485.45,0.00017466,2]
[325199094,1714575046679,-151.0,0.00017466,2]
[325199095,1714575046689,-151.0,0.00017466,2]
[325199096,1714575046698,-258.985858,0.00017466,2]
[325199097,1714575046708,-151.0,0.00017466,2]
[325199098,1714575046717,-258.985858,0.00017466,2]
[325199099,1714575046726,-151.0,0.00017466,2]
[325199100,1714575046735,-294.063377,0.00017466,2]
[325199101,1714575046744,-294.063377,0.00017466,2]
[325199102,1714575046754,-151.0,0.00017466,2]
[325199103,1714575046763,-151.0,0.00017466,2]
[325199104,1714575046772,-151.0,0.00017466,2]
[325199105,1714575046781,-151.0,0.00017466,2]
[325199106,1714575046790,-151.0,0.00017466,2]
[325199107,1714575046799,-151.0,0.00017466,2]
[325199108,1714575046807,-151.0,0.00017466,2]
[325199109,1714575046816,-151.0,0.00017466,2]
[325199110,1714575046825,-151.0,0.00017466,2]
[325199111,1714575046834,-151.0,0.00017466,2]
[325199112,1714575046843,-152.50492,0.00017466,2]
[325199113,1714575046853,-152.50492,0.00017466,2]
[325199114,1714575046862,-500.003855,0.00017466,2]
[325199115,1714575046875,-151.0,0.00017466,2]
[325199116,1714575046885,-500.003855,0.00017466,2]
[325199117,1714575046895,-151.0,0.00017466,2]
[325199118,1714575046905,-151.0,0.00017466,2]
[325199119,1714575046914,-151.547035,0.00017466,2]
[325199120,1714575046923,-151.0,0.00017466,2]
[325199121,1714575046933,-151.0,0.00017466,2]
[325199122,1714575046943,-151.0,0.00017466,2]
[325199123,1714575046952,-834.441592,0.00017466,2]
[325199124,1714575046962,-151.0,0.00017466,2]
[325199125,1714575046971,-834.441592,0.00017466,2]
[325199126,1714575046980,-151.0,0.00017466,2]
[325199127,1714575046990,-151.0,0.00017466,2]
[325199128,1714575047000,-581.459563,0.00017466,2]
[325199129,1714575047009,-160.711089,0.00017466,2]
[325199130,1714575047018,-240.44311,0.00017466,2]
[325199131,1714575047027,-581.459563,0.00017466,2]
[325199132,1714575047036,-151.0,0.00017466,2]
[325199133,1714575047046,-305.576016,0.00017466,2]
[325199134,1714575047055,-151.0,0.00017466,2]
[325199135,1714575047063,-305.576016,0.00017466,2]
[325199136,1714575047072,-151.0,0.00017466,2]
[325199137,1714575047082,-151.0,0.00017466,2]
[325199138,1714575047210,-151.0,0.00017466,2]
[325199139,1714575047229,-151.0,0.00017466,2]
[325199140,1714575047238,-10000.0,0.00017466,2]
[325199141,1714575047248,-10000.0,0.00017466,2]
[325199142,1714575047257,-621.483748,0.00017466,2]
[325199143,1714575047266,-10000.0,0.00017466,2]
[325199144,1714575047277,-151.0,0.00017466,2]
[325199145,1714575047286,-621.483748,0.00017466,2]
[325199146,1714575047296,-162.918862,0.00017466,2]
[325199147,1714575047306,-495.91348,0.00017466,2]
[325199148,1714575047315,-162.918862,0.00017466,2]
[325199149,1714575047325,-495.91348,0.00017466,2]
[325199150,1714575047334,-151.0,0.00017466,2]
[325199151,1714575047343,-151.0,0.00017466,2]
[325199152,1714575047353,-151.0,0.00017466,2]
[325199153,1714575047363,-165.595541,0.00017466,2]
[325199154,1714575047375,-151.0,0.00017466,2]
[325199155,1714575047385,-165.595541,0.00017466,2]
[325199156,1714575047394,-233.640538,0.00017466,2]
[325199157,1714575047403,-233.640538,0.00017466,2]
[325199158,1714575047413,-151.0,0.00017466,2]
[325199159,1714575047422,-160.782418,0.00017466,2]
[325199160,1714575047431,-151.0,0.00017466,2]
[325199161,1714575047441,-151.0,0.00017466,2]
[325199162,1714575047450,-151.0,0.00017466,2]
[325199163,1714575047459,-151.0,0.00017466,2]
[325199164,1714575047469,-575.367403,0.00017466,2]
[325199165,1714575047479,-575.367403,0.00017466,2]
[325199166,1714575047488,-157.93592244,0.00017472,2]
[325199167,1714575047498,-150.10647152,0.00017496,2]
[325199168,1714575047507,-2500.0,0.000175,2]
[325199169,1714575047516,-150.0,0.000175,2]
[325199170,1714575047526,-150.0,0.000175,2]
[325199171,1714575047534,-1903.327934,0.00017534,2]
[325199172,1714575047544,-1216.94,0.00017582,2]
[325199173,1714575047553,-152.06110622,0.00017594,2]
[325199174,1714575047562,-501.17802338,0.00017612,2]
[325199175,1714575047572,-735.92,0.00017643,2]
[325199176,1714575047582,-501.17802338,0.00017658,2]
[325199177,1714575047592,-150.0,0.00017699,2]
[325199178,1714575047601,-152.55120994,0.00017709,2]
[325199179,1714575047610,-501.17802338,0.00017777,2]
[325199180,1714575047621,-3000.0,0.000178,2]
[325199181,1714575047630,-1054.58902169,0.00017806,2]
[325199182,1714575047640,-299.28,0.00017834,2]
[325199183,1714575047649,-1216.94,0.00017856,2]
[325199184,1714575047658,-151.0,0.0001788,2]
[325199185,1714575047668,-151.604763,0.0001788,2]
[325199186,1714575047678,-151.0,0.0001788,2]
[325199187,1714575047686,-151.0,0.0001788,2]
[325199188,1714575047695,-151.0,0.0001788,2]
[325199189,1714575047705,-151.0,0.0001788,2]
[325199190,1714575047714,-294.272877,0.0001788,2]
[325199191,1714575047723,-151.0,0.0001788,2]
[325199192,1714575047732,-151.0,0.0001788,2]
[325199193,1714575047742,-152.005832,0.0001788,2]
[325199194,1714575047751,-220.59336,0.0001788,2]
[325199195,1714575047760,-220.59336,0.0001788,2]
[325199196,1714575047769,-179.63988,0.0001788,2]
[325199197,1714575047778,-221.598469,0.0001788,2]
[325199198,1714575047787,-179.63988,0.0001788,2]
[325199199,1714575047796,-221.598469,0.0001788,2]
[325199200,1714575047805,-548.91493,0.0001788,2]
[325199201,1714575047814,-377.575489,0.0001788,2]
[325199202,1714575047822,-377.575489,0.0001788,2]
[325199203,1714575047831,-548.91493,0.0001788,2]
[325199204,1714575047840,-151.0,0.0001788,2]
[325199205,1714575047849,-151.0,0.0001788,2]
[325199206,1714575047858,-35060.57581991,0.0001788,2]
[325199207,1714575047869,-35060.57581982,0.0001788,2]
[325199208,1714575047879,-152.12902794,0.00017901,2]
[325199209,1714575047891,-151.77233387,0.00017964,2]
[325199210,1714575047900,-264.08,0.00017967,2]
[325199211,1714575047910,-911.32,0.0001799,2]
[325199212,1714575047919,-911.32,0.0001799,2]
[325199213,1714575047929,-1054.58902169,0.00017993,2]
[325199214,1714575047939,-1500.0,0.00018,6]